bitfinex-derivatives/quotes_BTCF0:USTF0_20240814
["timestamp","ask_amount","ask_price","bid_price","bid_amount"]
[1723597455145,0.3608,60769.0,60764.0,0.08180042]
[1723597455348,0.3608,60769.0,60762.0,0.08180042]
[1723597455349,0.065801,60767.0,60762.0,0.08180042]
[1723597455649,0.3608,60763.0,60762.0,0.065807]
[1723597455844,0.36100079,60763.0,60762.0,0.19115294]
[1723597456347,0.36100079,60763.0,60762.0,0.065807]
[1723597456647,0.36100079,60763.0,60762.0,0.27286462]
[1723597456847,0.36100079,60763.0,60762.0,0.19114916]
[1723597457047,0.00020079,60763.0,60762.0,0.19114916]
[1723597457547,0.00020079,60763.0,60762.0,0.12534216]
[1723597458051,0.00020079,60763.0,60762.0,0.08163179]
[1723597458243,0.00020079,60763.0,60762.0,0.14743041]
[1723597458444,0.00120079,60763.0,60762.0,0.19114742]
[1723597459346,0.00120079,60763.0,60762.0,0.065807]
[1723597460053,0.00120079,60763.0,60761.0,0.08160261]
[1723597460243,0.00120079,60763.0,60759.0,0.08160261]
[1723597460441,0.00120079,60763.0,60758.0,0.14741361]
[1723597461348,0.00120079,60763.0,60759.0,0.065809]
[1723597462144,0.00020079,60763.0,60759.0,0.065809]
[1723597462446,0.00120079,60763.0,60759.0,0.065809]
[1723597464053,0.00120079,60763.0,60762.0,0.065807]
[1723597472047,0.00020079,60763.0,60762.0,0.065807]
[1723597472250,0.00120079,60763.0,60762.0,0.065807]
[1723597473853,0.00120079,60763.0,60762.0,0.50820961]
[1723597474058,0.00120079,60763.0,60762.0,0.55194454]
[1723597474258,0.00995932,60769.0,60762.0,0.55194454]
[1723597474558,0.00995932,60769.0,60763.0,0.20693821]
[1723597474758,0.00995932,60769.0,60763.0,0.08160067]
[1723597475059,0.00995932,60769.0,60763.0,0.14740667]
[1723597475459,0.00995932,60769.0,60764.0,0.20693543]
[1723597475759,0.01095932,60769.0,60764.0,0.08160067]
[1723597476460,0.065802,60766.0,60763.0,0.08160067]
[1723597476645,0.065802,60766.0,60760.0,0.08160067]
[1723597477049,0.065802,60766.0,60759.0,0.06581]
[1723597477050,0.3608,60763.0,60759.0,0.14741067]
[1723597477248,0.2989,60762.0,60759.0,0.14741067]
[1723597477457,0.4501,60762.0,60759.0,0.14741067]
[1723597478246,0.4501,60762.0,60760.0,0.20694623]
[1723597478455,0.4501,60762.0,60761.0,0.08160067]
[1723597478656,0.4501,60762.0,60760.0,0.08360067]
[1723597478853,0.4501,60762.0,60760.0,0.002]
[1723597479054,0.4511,60762.0,60759.0,0.14941067]
[1723597479254,0.4511,60762.0,60760.0,0.20694865]
[1723597479461,0.4511,60762.0,60760.0,0.08160067]
[1723597479863,0.4511,60762.0,60761.0,0.002]
[1723597481053,1.110627,60762.0,60761.0,0.002]
[1723597481259,0.616907,60762.0,60761.0,0.06738774]
[1723597481456,0.5511,60762.0,60761.0,0.002]
[1723597481757,0.3999,60762.0,60761.0,0.08160067]
[1723597482366,0.3999,60762.0,60761.0,0.12534614]
[1723597482661,0.101,60762.0,60761.0,0.12634614]
[1723597483256,0.11071802,60762.0,60761.0,0.12634614]
[1723597483663,0.11071802,60762.0,60761.0,0.12634873]
[1723597487763,0.06956603,60762.0,60761.0,0.12634873]
[1723597488169,0.01071802,60762.0,60761.0,0.12634873]
[1723597488366,0.07652502,60762.0,60761.0,0.20817463]
[1723597488554,0.07652502,60762.0,60761.0,0.001]
[1723597489369,1.08024502,60762.0,60761.0,0.001]
[1723597490660,1.01443802,60762.0,60759.0,0.04909465]
[1723597491359,0.06581,60759.0,60758.0,0.04909465]
[1723597491558,0.19581,60759.0,60758.0,0.04909465]
[1723597492255,0.19581,60759.0,60756.0,0.04934132]
[1723597492256,0.13,60759.0,60756.0,0.04934132]
[1723597492464,0.710812,60757.0,60756.0,0.04930851]
[1723597492661,0.820812,60757.0,60756.0,0.04930851]
[1723597493260,0.820812,60757.0,60756.0,0.00024667]
[1723597493464,0.820812,60757.0,60756.0,0.00124667]
[1723597493860,0.460012,60757.0,60756.0,0.00124667]
[1723597494065,1.181612,60757.0,60756.0,0.00124667]
[1723597494770,0.897412,60757.0,60756.0,0.00124667]
[1723597495068,0.897412,60757.0,60756.0,0.00024667]
[1723597495069,0.898412,60757.0,60756.0,0.00024667]
[1723597495369,0.898412,60757.0,60756.0,0.04930851]
[1723597495574,0.897412,60757.0,60756.0,0.04930851]
[1723597495867,0.3608,60763.0,60756.0,0.49400667]
[1723597496069,0.3608,60763.0,60762.0,0.06533605]
[1723597496272,0.3608,60763.0,60762.0,0.065807]
[1723597496469,0.3608,60763.0,60762.0,0.19115165]
[1723597497274,0.3608,60763.0,60762.0,0.68487165]
[1723597498467,0.3608,60763.0,60762.0,0.19115165]
[1723597499075,0.3618,60763.0,60762.0,0.19215165]
[1723597500572,0.3618,60763.0,60762.0,0.68587165]
[1723597501071,0.00024667,60769.0,60762.0,1.3808621]
[1723597501380,0.00024667,60769.0,60768.0,0.4266]
[1723597501678,0.065785,60782.0,60775.0,0.065793]
[1723597501975,0.00966299,60782.0,60781.0,0.065786]
[1723597502167,0.511879,60788.0,60781.0,0.426586]
[1723597502168,0.06578,60787.0,60781.0,0.426586]
[1723597502383,0.06578,60787.0,60784.0,0.04896091]
[1723597502575,0.06578,60787.0,60785.0,0.04896091]
[1723597502771,0.34998,60787.0,60785.0,0.04896091]
[1723597502968,0.34998,60787.0,60784.0,0.04896091]
[1723597503177,0.065781,60786.0,60784.0,0.04896091]
[1723597503471,0.3608,60786.0,60779.0,0.04920778]
[1723597504170,0.065784,60783.0,60779.0,0.00024687]
[1723597504363,0.3608,60786.0,60779.0,0.00024687]
[1723597504564,0.349987,60781.0,60779.0,0.00024687]
[1723597504775,0.065791,60777.0,60774.0,0.04896091]
[1723597504969,0.2842,60775.0,60772.0,0.04896091]
[1723597505175,0.065797,60771.0,60768.0,0.40976091]
[1723597506473,0.066797,60771.0,60768.0,0.41176091]
[1723597506676,0.065798,60770.0,60768.0,0.3628]
[1723597507173,0.001,60771.0,60768.0,0.41176091]
[1723597507471,0.001,60771.0,60768.0,0.05096091]
[1723597507779,0.066797,60771.0,60769.0,0.04896091]
[1723597507971,0.066797,60771.0,60768.0,0.002]
[1723597508166,0.066797,60771.0,60768.0,0.04896091]
[1723597508167,0.065797,60771.0,60768.0,0.04896091]
[1723597508368,0.001,60770.0,60768.0,0.05096091]
[1723597508875,0.065797,60771.0,60768.0,0.04896091]
[1723597509076,0.066797,60771.0,60769.0,0.002]
[1723597509465,0.3608,60770.0,60768.0,0.04896091]
[1723597509668,0.065805,60764.0,60763.0,0.00024687]
[1723597509964,0.065805,60764.0,60760.0,0.03653871]
[1723597509965,0.065808,60761.0,60753.0,0.13122622]
[1723597510169,0.350008,60761.0,60754.0,0.06528122]
[1723597510470,0.350008,60761.0,60753.0,0.13122622]
[1723597510875,0.065808,60761.0,60754.0,0.06528122]
[1723597511472,0.065808,60761.0,60755.0,0.06528122]
[1723597512372,0.065809,60760.0,60753.0,0.13122622]
[1723597512572,0.065809,60760.0,60753.0,0.065945]
[1723597512876,0.001,60761.0,60753.0,0.065945]
[1723597512877,0.06581,60759.0,60753.0,0.065945]
[1723597514893,0.3608,60759.0,60753.0,0.00013]
[1723597515183,0.065814,60755.0,60753.0,0.00013]
[1723597516080,0.065815,60754.0,60753.0,0.00013]
[1723597517083,0.546615,60754.0,60753.0,0.00013]
[1723597517285,0.065818,60752.0,60751.0,0.00016424]
[1723597517479,0.185818,60752.0,60751.0,0.00016424]
[1723597518484,0.065827,60743.0,60736.0,0.065834]
[1723597518786,0.065829,60741.0,60736.0,0.065834]
[1723597520477,0.065829,60741.0,60730.0,0.3]
[1723597520478,0.2842,60739.0,60730.0,0.06528122]
[1723597520673,0.1534,60738.0,60728.0,0.06528122]
[1723597520878,0.1534,60738.0,60727.0,0.06544063]
[1723597521488,0.1534,60738.0,60727.0,0.00015941]
[1723597521679,0.1534,60738.0,60727.0,0.06544063]
[1723597522084,0.1546,60740.0,60727.0,0.06544063]
[1723597522287,0.01077298,60741.0,60729.0,0.06528122]
[1723597522595,0.066833,60738.0,60733.0,0.065838]
[1723597523285,0.065833,60738.0,60733.0,0.065838]
[1723597524288,0.001,60740.0,60733.0,0.065838]
[1723597524787,0.001,60738.0,60733.0,0.065838]
[1723597525187,0.001,60738.0,60737.0,0.3608]
[1723597525890,0.065831,60740.0,60734.0,0.426637]
[1723597526089,0.066831,60740.0,60734.0,0.065837]
[1723597526491,0.3608,60736.0,60728.0,0.065843]
[1723597526794,0.065844,60728.0,60727.0,0.00015941]
[1723597527089,0.4608,60736.0,60727.0,0.00015941]
[1723597527090,0.065839,60732.0,60727.0,0.00015941]
[1723597527294,0.00084,60736.0,60735.0,0.065836]
[1723597527495,0.3608,60757.0,60735.0,0.645]
[1723597527496,0.00024687,60745.0,60735.0,0.645]
[1723597527685,0.3608,60757.0,60749.0,0.06582]
[1723597527889,0.37052582,60757.0,60750.0,0.3608]
[1723597528097,0.065818,60752.0,60750.0,0.3608]
[1723597528387,0.065818,60752.0,60745.0,0.1401]
[1723597528388,0.065818,60752.0,60746.0,0.3608]
[1723597528590,0.37052582,60757.0,60750.0,0.065819]
[1723597528783,0.3618,60757.0,60746.0,0.645]
[1723597529088,0.00024687,60755.0,60752.0,0.065817]
[1723597529300,0.001,60752.0,60746.0,0.645]
[1723597529491,0.001,60752.0,60746.0,0.710824]
[1723597529686,0.001,60752.0,60747.0,0.065822]
[1723597530390,0.001,60752.0,60746.0,0.3608]
[1723597531093,0.001,60752.0,60751.0,0.3608]
[1723597531394,0.06606187,60755.0,60751.0,0.3608]
[1723597531892,0.065817,60753.0,60751.0,0.3608]
[1723597532090,0.001,60752.0,60751.0,0.3608]
[1723597532792,0.065817,60753.0,60751.0,0.3628]
[1723597533092,0.065817,60753.0,60751.0,0.002]
[1723597533295,0.001,60752.0,60751.0,0.3628]
[1723597533893,0.426601,60768.0,60751.0,0.3628]
[1723597534083,0.426601,60768.0,60763.0,0.3608]
[1723597534084,0.436601,60768.0,60763.0,0.3608]
[1723597534484,0.436601,60768.0,60752.0,0.36195026]
[1723597534485,0.2842,60767.0,60760.0,0.1485]
[1723597534697,0.065805,60764.0,60760.0,0.1485]
[1723597534897,0.2842,60767.0,60755.0,0.06528122]
[1723597535101,0.065808,60762.0,60755.0,0.06528122]
[1723597535293,0.065808,60762.0,60754.0,0.21378122]
[1723597535601,0.065808,60762.0,60760.0,0.001]
[1723597536099,0.065808,60762.0,60756.0,0.00024687]
[1723597538891,0.065808,60762.0,60760.0,0.001]
[1723597539094,0.2842,60767.0,60760.0,0.001]
[1723597539294,0.02,60767.0,60760.0,0.001]
[1723597539504,0.001,60762.0,60757.0,0.3608]
[1723597540002,0.43643172,60768.0,60760.0,0.065808]
[1723597540211,0.47643172,60768.0,60760.0,0.067808]
[1723597540502,0.2842,60767.0,60760.0,0.002]
[1723597540702,0.065805,60764.0,60760.0,0.002]
[1723597540904,0.075805,60764.0,60760.0,0.002]
[1723597541603,0.075805,60764.0,60757.0,0.3608]
[1723597541904,0.001,60762.0,60757.0,0.3628]
[1723597542301,0.001,60764.0,60760.0,0.002]
[1723597542601,0.065806,60763.0,60760.0,0.002]
[1723597542800,0.065806,60763.0,60757.0,0.49379442]
[1723597542801,0.075806,60763.0,60757.0,0.49379442]
[1723597544106,0.2842,60761.0,60757.0,0.42798242]
[1723597544405,0.2942,60761.0,60757.0,0.42598242]
[1723597544706,0.2942,60761.0,60760.0,0.002]
[1723597545010,0.2942,60761.0,60757.0,0.42598242]
[1723597545210,0.2942,60761.0,60757.0,0.42798242]
[1723597545701,0.2952,60761.0,60757.0,0.42798242]
[1723597545904,0.011,60761.0,60757.0,0.42798242]
[1723597547598,0.011,60761.0,60757.0,0.3628]
[1723597548203,0.011,60761.0,60759.0,0.3608]
[1723597548401,0.011,60761.0,60757.0,0.002]
[1723597549505,0.011,60761.0,60757.0,0.3628]
[1723597550798,0.011,60761.0,60759.0,0.3608]
[1723597551104,0.011,60761.0,60757.0,0.002]
[1723597551299,0.011,60761.0,60759.0,0.3608]
[1723597552707,0.011,60761.0,60759.0,0.3628]
[1723597553497,0.011,60761.0,60759.0,0.42798242]
[1723597554103,0.011,60761.0,60759.0,0.06718242]
[1723597554303,0.011,60761.0,60760.0,0.3608]
[1723597554503,0.011,60761.0,60760.0,0.42598242]
[1723597554709,0.0208762,60761.0,60760.0,0.42598242]
[1723597555110,0.0208762,60761.0,60760.0,0.3608]
[1723597555410,1.1988362,60761.0,60760.0,0.00218242]
[1723597555608,1.1988362,60761.0,60745.0,0.06534915]
[1723597555609,0.065821,60749.0,60745.0,0.06534915]
[1723597555915,0.065821,60749.0,60741.0,0.08165216]
[1723597555916,0.4956,60748.0,60747.0,0.06534915]
[1723597556103,0.561422,60748.0,60744.0,0.06534915]
[1723597556301,0.561422,60748.0,60738.0,0.1345]
[1723597556302,0.065823,60747.0,60741.0,0.06534915]
[1723597556506,0.4956,60748.0,60738.0,0.1345]
[1723597556507,0.3608,60742.0,60738.0,0.1345]
[1723597556704,0.3608,60742.0,60740.0,0.06540767]
[1723597556903,0.3608,60742.0,60741.0,0.06540767]
[1723597557112,0.3608,60742.0,60738.0,0.00024687]
[1723597557113,0.3608,60742.0,60740.0,0.06540767]
[1723597558204,0.3608,60742.0,60739.0,0.06540767]
[1723597558709,0.3608,60742.0,60738.0,0.00024687]
[1723597558710,0.3608,60742.0,60738.0,0.06565454]
[1723597559108,0.3618,60742.0,60738.0,0.06565454]
[1723597559506,0.3618,60742.0,60738.0,0.00024687]
[1723597560909,0.37166924,60742.0,60738.0,0.00024687]
[1723597562612,0.43749724,60742.0,60738.0,0.00024687]
[1723597563115,0.06583,60741.0,60738.0,0.00024687]
[1723597563604,0.065831,60740.0,60738.0,0.00024687]
[1723597563807,0.06583,60741.0,60738.0,0.00024687]
[1723597564117,0.37166924,60742.0,60738.0,0.00024687]
[1723597565215,0.065832,60739.0,60738.0,0.00024687]
[1723597566411,0.001,60739.0,60738.0,0.06607987]
[1723597567819,0.001,60739.0,60738.0,0.13148754]
[1723597568217,0.001,60739.0,60738.0,0.06565454]
[1723597569117,0.001,60739.0,60738.0,0.00024687]
[1723597569421,0.001,60739.0,60738.0,0.55999987]
[1723597571421,0.001,60739.0,60738.0,0.49416687]
[1723597571616,0.066832,60739.0,60738.0,0.06557238]
[1723597571925,0.066832,60739.0,60738.0,0.00024687]
[1723597571926,0.427632,60739.0,60738.0,0.00024687]
[1723597572919,0.066832,60739.0,60738.0,0.00024687]
[1723597573119,0.427632,60739.0,60738.0,0.00024687]
[1723597574820,0.001,60739.0,60738.0,0.00024687]
[1723597575518,0.001,60739.0,60738.0,0.06607987]
[1723597575820,0.3608,60746.0,60738.0,1.01955095]
[1723597576025,0.3608,60746.0,60745.0,0.065825]
[1723597576419,0.3608,60746.0,60745.0,0.13116404]
[1723597577227,0.3608,60746.0,60745.0,0.06533904]
[1723597577929,0.3608,60746.0,60744.0,0.06533904]
[1723597577930,0.3618,60746.0,60744.0,0.06533904]
[1723597578520,0.3618,60746.0,60745.0,0.001]
[1723597578924,0.32063751,60746.0,60744.0,0.06533904]
[1723597579225,0.001,60746.0,60744.0,0.06733904]
[1723597579428,0.001,60746.0,60745.0,0.13116404]
[1723597579626,0.001,60746.0,60745.0,0.065825]
[1723597580629,0.3608,60749.0,60745.0,0.065825]
[1723597580830,0.3608,60749.0,60747.0,0.06540102]
[1723597581530,0.426621,60749.0,60746.0,0.06540102]
[1723597581726,0.426621,60749.0,60745.0,0.06640102]
[1723597581925,0.427621,60749.0,60745.0,0.06640102]
[1723597582332,0.427621,60749.0,60746.0,0.06540102]
[1723597582536,0.427621,60749.0,60747.0,0.001]
[1723597582726,0.427621,60749.0,60747.0,0.06640102]
[1723597583037,0.427621,60749.0,60748.0,0.06540102]
[1723597583428,0.427621,60749.0,60747.0,0.001]
[1723597583621,0.427621,60749.0,60748.0,0.06546847]
[1723597584429,0.427621,60749.0,60747.0,0.001]
[1723597584733,0.427621,60749.0,60746.0,0.08167381]
[1723597585328,0.427621,60749.0,60748.0,0.001]
[1723597585526,0.427621,60749.0,60748.0,0.20804904]
[1723597585929,0.426621,60749.0,60748.0,0.20704904]
[1723597586140,0.427621,60749.0,60748.0,0.20704904]
[1723597586627,0.427621,60749.0,60748.0,0.08167381]
[1723597587631,0.427621,60749.0,60747.0,0.08167381]
[1723597587632,0.547621,60749.0,60747.0,0.08167381]
[1723597587832,0.065823,60748.0,60746.0,0.001]
[1723597588022,0.185823,60748.0,60745.0,0.08167381]
[1723597588924,0.185823,60748.0,60747.0,0.001]
[1723597589329,0.186823,60748.0,60745.0,0.08267381]
[1723597590035,0.3608,60746.0,60745.0,0.08267381]
[1723597591038,0.3608,60746.0,60745.0,0.001]
[1723597591532,0.3618,60746.0,60745.0,0.001]
[1723597591933,0.4718,60746.0,60745.0,0.001]
[1723597593338,0.4718,60746.0,60745.0,0.08267381]
[1723597593835,0.4718,60746.0,60745.0,0.12638548]
[1723597596340,0.4718,60746.0,60745.0,0.20845705]
[1723597596532,0.537624,60746.0,60745.0,0.001]
[1723597596733,0.537624,60746.0,60745.0,0.06666999]
[1723597596937,0.537624,60746.0,60745.0,0.001]
[1723597597140,0.937624,60746.0,60745.0,0.001]
[1723597597332,1.431504,60746.0,60745.0,0.001]
[1723597598239,0.065829,60742.0,60740.0,0.06566999]
[1723597598539,0.065829,60742.0,60738.0,0.00024687]
[1723597598540,0.4981,60741.0,60739.0,0.06566999]
[1723597598742,0.6181,60741.0,60740.0,0.06566999]
[1723597599042,0.6181,60741.0,60738.0,0.00024687]
[1723597599043,0.6181,60741.0,60739.0,0.06566999]
[1723597599343,0.6181,60741.0,60738.0,0.06591686]
[1723597599344,0.065832,60739.0,60738.0,0.06591686]
[1723597599634,0.065832,60739.0,60738.0,0.00024687]
[1723597599635,0.185832,60739.0,60738.0,0.00024687]
[1723597600142,0.185832,60739.0,60738.0,0.06591686]
[1723597600143,0.12,60739.0,60738.0,0.06591686]
[1723597600444,0.12,60739.0,60738.0,0.00024687]
[1723597600851,0.12,60739.0,60738.0,0.06607987]
[1723597601141,0.001,60741.0,60739.0,0.065831]
[1723597601340,0.06606687,60750.0,60740.0,0.26398683]
[1723597601536,0.06606687,60750.0,60747.0,0.06556591]
[1723597601537,0.18606687,60750.0,60747.0,0.06556591]
[1723597601740,0.18606687,60750.0,60748.0,0.06556591]
[1723597602349,0.19568611,60750.0,60748.0,0.06556591]
[1723597602945,0.13086611,60750.0,60749.0,0.06556591]
[1723597603144,0.13086611,60750.0,60746.0,0.08195739]
[1723597604152,0.12986611,60750.0,60748.0,0.001]
[1723597604646,0.3608,60749.0,60746.0,0.08195739]
[1723597604843,0.3608,60749.0,60746.0,0.08295739]
[1723597605051,0.710821,60749.0,60748.0,0.06556093]
[1723597605246,0.710821,60749.0,60746.0,0.001]
[1723597605247,0.065822,60748.0,60746.0,0.06556093]
[1723597605439,0.065822,60748.0,60747.0,0.06556093]
[1723597605847,0.065822,60748.0,60746.0,0.06556093]
[1723597606148,0.065822,60748.0,60745.0,0.06556093]
[1723597606648,0.065822,60748.0,60746.0,0.06556093]
[1723597607042,0.065822,60748.0,60746.0,0.06656093]
[1723597607548,0.065822,60748.0,60746.0,0.06556093]
[1723597607757,0.066822,60748.0,60746.0,0.06556093]
[1723597608345,0.066822,60748.0,60746.0,0.001]
[1723597611042,0.176822,60748.0,60746.0,0.001]
[1723597612448,0.670662,60748.0,60746.0,0.001]
[1723597612651,0.1311,60747.0,60746.0,0.001]
[1723597612847,0.2411,60747.0,60746.0,0.001]
[1723597613046,0.73494,60747.0,60746.0,0.001]
[1723597613747,0.2411,60747.0,60746.0,0.001]
[1723597613945,0.73494,60747.0,60746.0,0.001]
[1723597614147,0.175823,60747.0,60746.0,0.001]
[1723597614651,0.176823,60747.0,60746.0,0.001]
[1723597615851,0.25229183,60747.0,60746.0,0.001]
[1723597617662,0.176823,60747.0,60746.0,0.001]
[1723597622860,0.898423,60747.0,60746.0,0.001]
[1723597623463,0.898423,60747.0,60746.0,0.2467]
[1723597624160,0.898423,60747.0,60746.0,0.31226074]
[1723597624868,0.898423,60747.0,60746.0,0.2467]
[1723597627871,1.012223,60747.0,60746.0,0.2467]
[1723597628270,1.012223,60747.0,60746.0,0.001]
[1723597628665,1.012223,60747.0,60746.0,0.06665936]
[1723597629268,1.0877396,60747.0,60746.0,0.001]
[1723597629875,1.0877396,60747.0,60746.0,0.06665936]
[1723597631160,1.0877396,60747.0,60746.0,0.001]
[1723597631365,1.012223,60747.0,60746.0,0.001]
[1723597631675,1.012223,60747.0,60746.0,0.06665936]
[1723597631970,2.08658637,60747.0,60745.0,0.04927448]
[1723597632179,0.065825,60745.0,60744.0,0.04927448]
[1723597632368,0.195825,60745.0,60744.0,0.04927448]
[1723597632965,0.065827,60743.0,60742.0,0.06565936]
[1723597633575,0.065827,60743.0,60738.0,0.08220426]
[1723597633774,0.3608,60739.0,60738.0,0.08220426]
[1723597633970,0.3608,60739.0,60738.0,0.12565005]
[1723597634370,0.001,60745.0,60738.0,0.61957005]
[1723597634566,0.3608,60747.0,60741.0,0.09851722]
[1723597634769,0.001,60743.0,60742.0,0.4785204]
[1723597635278,0.3608,60747.0,60742.0,0.4785204]
[1723597635475,0.3608,60747.0,60746.0,0.08209004]
[1723597635678,0.3608,60747.0,60746.0,0.12540318]
[1723597636273,0.00092,60753.0,60747.0,0.49384]
[1723597636575,0.3608,60760.0,60751.0,0.09846315]
[1723597636877,0.3708,60760.0,60757.0,0.08204775]
[1723597637182,0.38063008,60760.0,60759.0,0.06559915]
[1723597637976,0.38063008,60760.0,60756.0,0.08204775]
[1723597638176,0.38063008,60760.0,60759.0,0.06556856]
[1723597638374,0.38063008,60760.0,60758.0,0.06556856]
[1723597638679,0.38063008,60760.0,60755.0,0.1227]
[1723597638680,0.38063008,60760.0,60759.0,0.06556856]
[1723597639075,0.38063008,60760.0,60758.0,0.06556856]
[1723597639276,0.38063008,60760.0,60759.0,0.06556856]
[1723597640172,0.38163008,60760.0,60758.0,0.06556856]
[1723597640570,0.38163008,60760.0,60757.0,0.06556856]
[1723597640766,0.38163008,60760.0,60755.0,0.1227]
[1723597640767,0.38063008,60760.0,60758.0,0.06556856]
[1723597641179,0.38063008,60760.0,60755.0,0.1227]
[1723597641180,0.38063008,60760.0,60757.0,0.06556856]
[1723597642073,0.66523008,60760.0,60758.0,0.04911802]
[1723597642383,0.065812,60757.0,60755.0,0.04911802]
[1723597642582,0.065813,60756.0,60754.0,0.04911802]
[1723597642784,0.3608,60755.0,60754.0,0.04912638]
[1723597643374,0.3608,60755.0,60753.0,0.00024687]
[1723597643880,0.426614,60755.0,60753.0,0.04937126]
[1723597644384,0.2846,60754.0,60753.0,0.04937126]
[1723597644581,0.4046,60754.0,60753.0,0.00024687]
[1723597646886,0.4086,60754.0,60753.0,0.00024687]
[1723597649984,0.474415,60754.0,60753.0,0.00024687]
[1723597651979,0.835215,60754.0,60753.0,0.00024687]
[1723597658093,0.664415,60754.0,60753.0,0.00024687]
[1723597658888,0.303615,60754.0,60753.0,0.00024687]
[1723597659096,0.664415,60754.0,60753.0,0.00024687]
[1723597659393,0.303615,60754.0,60753.0,0.00024687]
[1723597659592,0.664415,60754.0,60753.0,0.00024687]
[1723597661901,0.550615,60754.0,60753.0,0.00024687]
[1723597662085,0.664415,60754.0,60753.0,0.04937126]
[1723597663097,0.664415,60754.0,60753.0,0.00024687]
[1723597663300,0.660415,60754.0,60753.0,0.00024687]
[1723597664091,0.664415,60754.0,60753.0,0.00024687]
[1723597664597,0.663415,60754.0,60753.0,0.00024687]
[1723597667088,0.663415,60754.0,60753.0,0.06581543]
[1723597667794,0.663415,60754.0,60753.0,0.00024687]
[1723597669199,0.663415,60754.0,60753.0,0.06581543]
[1723597669394,0.663415,60754.0,60753.0,0.00024687]
[1723597670693,0.065821,60749.0,60747.0,0.08204775]
[1723597670898,0.065821,60749.0,60740.0,0.34336315]
[1723597670899,0.3608,60748.0,60746.0,0.08204775]
[1723597671101,0.1138,60747.0,60746.0,0.08204775]
[1723597671404,0.2338,60747.0,60745.0,0.08204775]
[1723597671703,0.4746,60746.0,60743.0,0.08204775]
[1723597671896,0.1138,60744.0,60743.0,0.08204775]
[1723597672201,0.1138,60744.0,60743.0,0.12539577]
[1723597673500,0.1148,60744.0,60743.0,0.12539577]
[1723597676102,0.1148,60744.0,60743.0,0.08202769]
[1723597676303,0.1148,60744.0,60743.0,0.20742298]
[1723597676505,0.2248,60744.0,60743.0,0.20742298]
[1723597677801,0.5856,60744.0,60743.0,0.20742298]
[1723597678107,0.5856,60744.0,60743.0,0.08202769]
[1723597678310,0.5856,60744.0,60743.0,0.20742257]
[1723597678710,0.5856,60744.0,60742.0,0.08202769]
[1723597679102,0.5856,60744.0,60741.0,0.08202769]
[1723597679302,0.1138,60742.0,60741.0,0.08202769]
[1723597679501,0.1138,60742.0,60741.0,0.20742389]
[1723597680515,0.1138,60742.0,60741.0,0.08202769]
[1723597680705,0.1148,60742.0,60741.0,0.08202769]
[1723597681405,0.1148,60742.0,60740.0,0.00024687]
[1723597681807,0.1148,60742.0,60741.0,0.08202769]
[1723597682209,0.1148,60742.0,60740.0,0.08227456]
[1723597684212,0.1148,60742.0,60740.0,0.14810456]
[1723597684516,0.1148,60742.0,60741.0,0.08202769]
[1723597684815,0.3608,60744.0,60741.0,0.19122488]
[1723597685015,0.3608,60744.0,60743.0,0.08195944]
[1723597685321,0.4746,60744.0,60743.0,0.20734744]
[1723597686309,0.4756,60744.0,60743.0,0.20734744]
[1723597686813,0.4746,60744.0,60743.0,0.20734796]
[1723597687005,0.4746,60744.0,60743.0,0.20834796]
[1723597687006,0.4756,60744.0,60743.0,0.20834796]
[1723597687205,0.4756,60744.0,60743.0,0.001]
[1723597693118,0.5856,60744.0,60743.0,0.001]
[1723597696316,0.5856,60744.0,60743.0,0.08295996]
[1723597696519,0.5856,60744.0,60743.0,0.001]
[1723597696714,0.5856,60744.0,60743.0,0.12639287]
[1723597697513,0.5856,60744.0,60743.0,0.1263871]
[1723597698627,0.2248,60744.0,60743.0,0.1263871]
[1723597701623,0.2248,60744.0,60743.0,0.12638691]
[1723597702729,0.111,60744.0,60743.0,0.12638691]
[1723597702927,0.111,60744.0,60743.0,0.24728691]
[1723597704023,0.111,60744.0,60743.0,0.12638691]
[1723597704625,0.111,60744.0,60743.0,0.20832234]
[1723597704825,0.176826,60744.0,60743.0,0.20832234]
[1723597706734,0.176826,60744.0,60743.0,0.08293543]
[1723597706931,0.176826,60744.0,60743.0,0.20833013]
[1723597707529,0.176826,60744.0,60743.0,0.001]
[1723597711928,0.537626,60744.0,60743.0,0.001]
[1723597716230,0.4718,60744.0,60743.0,0.001]
[1723597717336,0.4718,60744.0,60743.0,0.08293543]
[1723597717533,0.4718,60744.0,60743.0,0.20832511]
[1723597717738,0.4718,60744.0,60743.0,0.08293543]
[1723597717935,0.4718,60744.0,60743.0,0.2083253]
[1723597718426,0.4718,60744.0,60743.0,0.12638987]
[1723597718625,0.4718,60744.0,60743.0,0.001]
[1723597719034,0.4718,60744.0,60743.0,0.06642504]
[1723597719335,0.4718,60744.0,60743.0,0.001]
[1723597719729,0.537626,60744.0,60743.0,0.001]
[1723597719932,0.536626,60744.0,60743.0,0.06542239]
[1723597720138,0.537626,60744.0,60743.0,0.06642239]
[1723597722732,0.537626,60744.0,60743.0,0.06636793]
[1723597722945,0.537626,60744.0,60743.0,0.001]
[1723597732938,0.4718,60744.0,60743.0,0.06636793]
[1723597733139,0.4718,60744.0,60743.0,0.001]
[1723597733740,0.5856,60744.0,60743.0,0.001]
[1723597736152,0.651426,60744.0,60743.0,0.06642752]
[1723597736545,0.651426,60744.0,60743.0,0.001]
[1723597737145,0.651426,60744.0,60735.0,0.08175879]
[1723597737344,0.651426,60744.0,60734.0,0.00978954]
[1723597737345,0.4746,60736.0,60734.0,0.00978954]
[1723597737550,0.4746,60736.0,60732.0,0.20195879]
[1723597737551,0.5746,60736.0,60732.0,0.1202]
[1723597737747,0.1138,60733.0,60732.0,0.1202]
[1723597738048,0.526635,60736.0,60732.0,0.3274077]
[1723597738049,0.540435,60736.0,60732.0,0.3274077]
[1723597738255,0.650435,60736.0,60733.0,0.2072077]
[1723597738454,0.650435,60736.0,60733.0,0.08179463]
[1723597739250,0.650435,60736.0,60732.0,0.31679463]